[Event "Austrian Championship 2022"]
[Site "Vienna"]
[Date "2022.08.15"]
[Round "5.15"]
[White "Exler, Veronika"]
[Black "Sandhoefner, Florian"]
[Result "1-0"]
[ECO "D11"]
[WhiteElo "2132"]
[BlackElo "2289"]
[Annotator "NA RC"]
[PlyCount "101"]
[EventDate "2022.08.12"]
[EventType "swiss"]
[EventCountry "AUT"]
[SourceTitle "playchess.com"]
[Source "ChessBase"]
[SourceQuality "1"]
[TimeControl "40/5400+30:1800+30"]

1. d4 {[%emt 0:00:01]} d5 {[%emt 0:00:08]} 2. Nf3 {[%emt 0:00:05]} Nf6 {[%emt 0:00:03]} 3. g3 {[%emt 0:00:05]} c6 {[%emt 0:00:09]} 4. Bg2 {[%emt 0:00:04]} Bf5 {[%emt 0:00:10]} 5. c4 {[%emt 0:00:21]} e6 {[%emt 0:00:18]} 6. Nc3 {[%emt 0:00:37]} h6 {[%emt 0:00:10]} 7. Qb3 {[%emt 0:00:05]} Qb6 {[%emt 0:00:19]} 8. c5 {[%emt 0:00:08]} Qxb3 {[%emt 0:00:41]} 9. axb3 {[%emt 0:00:06]} a6 {[%emt 0:00:13]} 10. b4 {[%emt 0:02:15]} Be7 {[%emt 0:00:28]} 11. Nd2 {[%emt 0:11:41]} O-O {[%emt 0:07:02]} 12. f3 {[%emt 0:06:03]} Bh7 {[%emt 0:02:11]} 13. e4 {[%emt 0:07:40]} dxe4 {[%emt 0:02:48]} 14. fxe4 {[%emt 0:00:05]} Nbd7 {[%emt 0:00:34]} 15. O-O {[%emt 0:11:10]} b6 {[%emt 0:02:53]} 16. e5 {[%emt 0:02:22]} Nd5 {[%emt 0:03:20]} 17. Nxd5 {[%emt 0:03:32]} exd5 {[%emt 0:00:17]} 18. Bh3 {[%emt 0:02:39]} Rfd8 {[%emt 0:01:29]} 19. e6 {[%emt 0:13:05]} Nf6 {[%emt 0:02:41]} 20. exf7+ {[%emt 0:03:22]} Kf8 {[%emt 0:01:10]} 21. Nf3 {[%emt 0:01:03]} a5 {[%emt 0:00:20]} 22. Bf4 {[%emt 0:31:09]} bxc5 {[%emt 0:01:45]} 23. bxc5 {[%emt 0:00:27]} Ra7 {[%emt 0:00:14]} 24. Ne5 {[%emt 0:00:37]} Ra6 {[%emt 0:00:39]} 25. Ra3 {[%emt 0:01:35]} Ne4 {[%emt 0:05:16]} 26. Rc1 {[%emt 0:01:56]} Bf6 {[%emt 0:01:54]} 27. Bf1 {[%emt 0:00:26]} Bxe5 {[%emt 0:00:15]} 28. Bxe5 {[%emt 0:00:31]} Ra7 {[%emt 0:00:03]} 29. Rca1 {[%emt 0:01:02]} Rxf7 {[%emt 0:02:54]} 30. Bd3 {[%emt 0:00:43]} Rb7 {[%emt 0:02:00]} 31. Rxa5 {[%emt 0:00:29]} Rxb2 {[%emt 0:00:33]} 32. Rf1+ {[%emt 0:00:25]} Ke7 {[%emt 0:01:36]} 33. Ra7+ {[%emt 0:00:06]} Rd7 {[%emt 0:00:17]} 34. Rxd7+ {[%emt 0:00:57]} Kxd7 {[%emt 0:00:01]} 35. Rf7+ {[%emt 0:00:07]} Ke6 {[%emt 0:00:19]} 36. Rxg7 {[%emt 0:00:46]} Rd2 {[%emt 0:02:01]} 37. Rxh7 {[%emt 0:00:43]} Rxd3 {[%emt 0:00:02]} 38. Rxh6+ {[%emt 0:00:04]} Kf5 {[%emt 0:00:01]} 39. Rxc6 {[%emt 0:00:40]} Rd2 {[%emt 0:00:58]} 40. Rc8 {[%emt 0:00:34]} Ng5 {[%emt 0:00:31]} 41. Rf8+ {[%emt 0:10:45]} Ke4 {[%emt 0:00:21]} 42. h4 {[%emt 0:03:28]} Nf3+ {[%emt 0:00:01]} 43. Rxf3 {[%emt 0:00:10]} Kxf3 {[%emt 0:00:15]} 44. h5 {[%emt 0:00:15]} Rg2+ {[%emt 0:00:22]} 45. Kh1 {[%emt 0:00:55]} Ra2 {[%emt 0:00:09]} 46. c6 {[%emt 0:02:32]} Rc2 {[%emt 0:00:40]} 47. c7 {[%emt 0:00:11]} Rc6 {[%emt 0:00:08]} 48. Kg1 {[%emt 0:03:36]} Rc1+ {[%emt 0:01:51]} 49. Kh2 {[%emt 0:00:04]} Rc6 {[%emt 0:00:11]} 50. Kh3 {[%emt 0:00:47]} Rc1 {[%emt 0:00:31]} 51. Kh4 {[%emt 0:00:10]} 1-0

[Event "Austrian Championship 2022"]
[Site "Vienna"]
[Date "2022.08.15"]
[Round "5.16"]
[White "Schnepp, Gunnar"]
[Black "Dotzer, Lukas"]
[Result "1-0"]
[ECO "E17"]
[WhiteElo "2265"]
[BlackElo "2269"]
[Annotator "TA"]
[PlyCount "71"]
[EventDate "2022.08.12"]
[EventType "swiss"]
[EventCountry "AUT"]
[SourceTitle "playchess.com"]
[Source "ChessBase"]
[SourceQuality "1"]
[TimeControl "40/5400+30:1800+30"]

{[%evp 25,71,0,0,0,77,52,85,98,95,-82,46,42,39,45,60,54,54,45,83,94,87,79,82,57,70,62,97,88,235,237,356,351,493,488,509,494,614,608,639,618,29988,29989,29989,29990,29990,1331,29998,29999]} 1. d4 {[%emt 0:00:02]} Nf6 {[%emt 0:00:06]} 2. Nf3 {[%emt 0:00:17]} e6 {[%emt 0:00:06]} 3. c4 {[%emt 0:11:13]} b6 {[%emt 0:00:05]} 4. g3 {[%emt 0:00:33]} Bb7 {[%emt 0:00:09]} 5. Bg2 {[%emt 0:00:18]} Be7 {[%emt 0:00:05]} 6. O-O {[%emt 0:00:28]} O-O {[%emt 0:00:08]} 7. d5 {[%emt 0:02:41]} exd5 {[%emt 0:00:09]} 8. Nh4 {[%emt 0:00:20]} c6 {[%emt 0:00:05]} 9. cxd5 {[%emt 0:00:11]} Nxd5 {[%emt 0:00:33]} 10. Nf5 {[%emt 0:00:03]} Nc7 {[%emt 0:01:45]} 11. e4 {[%emt 0:02:13]} d5 {[%emt 0:04:13]} 12. Nc3 {[%emt 0:02:35]} Bf6 {[%emt 0:11:52]} 13. exd5 {[%emt 0:19:38]} cxd5 {[%emt 0:05:22] The main line 13...cxd5 scores better than 13...Nxd5.} 14. Bf4 {[%emt 0:05:56] Strongly threatening Bxc7. E17: Queen's Indian: 4 g3 Bb7 5 Bg2 Be7.} Bxc3 {[%emt 0:07:01]} (14... Nba6 $11 {keeps the balance.}) 15. bxc3 $16 {[%emt 0:00:37] aiming for Re1.} Nd7 {[%emt 0:17:59]} 16. Qg4 {[%emt 0:21:34][%csl Gf5][%cal Rg4g7] White is much more active. The black rooks are badly placed. White is better.} Ne6 {[%emt 0:11:37] [#]} 17. Nh6+ $146 {[%emt 0:06:30]} (17. Nxg7 $1 $16 Nxg7 18. Bh6) ({Predecessor:} 17. Bd6 Nf6 18. Qb4 Re8 19. Be7 Qd7 20. Bxf6 gxf6 21. Qh4 Ng5 22. g4 Rac8 23. Qh6 {1-0 (30) Soderstrom,A (2292)-Boci,P (1709) Thessaloniki 2022}) 17... Kh8 $14 {[%emt 0:00:09] [#]} 18. Nxf7+ $1 {[%emt 0:00:19][%mdl 64] Remove Defender, Decoy} Rxf7 {[%emt 0:00:07]} 19. Qxe6 {[%emt 0:00:09]} Re7 {[%emt 0:06:38]} 20. Qf5 {[%emt 0:05:08]} Nf6 {[%emt 0:02:36]} 21. Rfe1 {[%emt 0:02:59]} Qd7 {[%emt 0:12:23]} 22. Qxd7 {[%emt 0:00:56]} Rxd7 {[%emt 0:00:04]} 23. Rad1 {[%emt 0:00:29]} Rad8 {[%emt 0:05:44]} 24. Re6 {[%emt 0:04:00]} Kg8 {[%emt 0:01:41]} 25. Bh3 {[%emt 0:03:57] And now Re3 would win.} Kf7 {[%emt 0:03:09]} 26. Rde1 {[%emt 0:02:40]} Ne4 {[%emt 0:08:56] Loses the game.} (26... Kf8 $16) 27. Re5 $18 {[%emt 0:00:24]} Rd6 {[%emt 0:00:39]} (27... h6 $142 28. Bxd7 Rxd7 29. Rf5+ Kg6) 28. f3 {[%emt 0:00:40]} g5 {[%emt 0:00:26]} (28... Nc5 $142 29. Re7+ Kg6) 29. Bc1 {[%emt 0:00:45]} ({Less strong is} 29. fxe4 gxf4 30. Rh5 (30. gxf4 dxe4 31. Bf5 Rd1 $11) 30... Kg6 $14) 29... Nc5 {[%emt 0:00:37]} 30. Bxg5 {[%emt 0:00:49]} Rg8 {[%emt 0:00:31]} 31. Be7 {[%emt 0:01:12] This bishop pair is nice.} Rh6 {[%emt 0:00:30]} 32. Bxc5 {[%emt 0:01:21]} Rxh3 {[%emt 0:00:26]} 33. Re7+ {[%emt 0:00:02]} Kg6 {[%emt 0:00:20]} 34. R1e6+ {[%emt 0:00:30]} Kf5 {[%emt 0:00:44]} 35. g4+ {[%emt 0:01:07]} (35. Bd4 $142 Rg6 36. g4+ Rxg4+ 37. fxg4+ Kxg4 38. Rxb7 Rh5 39. Rxa7 Rg5 40. Rxb6 Kf5+ 41. Kf1) 35... Kf4 {[%emt 0:00:30]} 36. Rf7+ {[%emt 0:00:29] Weighted Error Value: White=0.12 (very precise) /Black=0.81} 1-0

[Event "Austrian Championship 2022"]
[Site "Vienna"]
[Date "2022.08.15"]
[Round "5.17"]
[White "Sucher, Johannes"]
[Black "Neumeier, Klaus"]
[Result "1/2-1/2"]
[ECO "D39"]
[WhiteElo "2164"]
[BlackElo "2257"]
[Annotator "TA"]
[PlyCount "65"]
[EventDate "2022.08.12"]
[EventType "swiss"]
[EventCountry "AUT"]
[SourceTitle "playchess.com"]
[Source "ChessBase"]
[SourceQuality "1"]
[TimeControl "40/5400+30:1800+30"]

{[%evp 11,65,14,48,35,31,34,31,20,147,63,93,84,114,120,135,118,171,182,205,151,178,129,132,126,147,80,97,97,133,110,135,114,150,146,196,194,184,114,131,116,130,90,93,0,122,120,105,8,18,-12,-15,-19,0,0,0,0]} 1. d4 {[%emt 0:00:03]} d5 {[%emt 0:00:14]} 2. Nf3 {[%emt 0:00:17]} Nf6 {[%emt 0:00:17]} 3. c4 {[%emt 0:00:13]} e6 {[%emt 0:00:14]} 4. Nc3 {[%emt 0:00:18]} Bb4 {[%emt 0:01:14]} 5. Bg5 {[%emt 0:01:03]} dxc4 {[%emt 0:00:38]} 6. e4 {[%emt 0:01:22]} b5 {[%emt 0:02:33]} 7. a4 {[%emt 0:27:31] D39: Queen's Gambit Declined: Ragozin Defence with 5 Bg5 dxc4.} c5 $1 {[%emt 0:03:09][%mdl 4] now scores much better than the old 7...c6.} 8. axb5 {[%emt 0:08:52]} cxd4 {[%emt 0:00:16]} 9. Nxd4 {[%emt 0:00:22] [#] White is slightly better.} Bc5 $146 {[%emt 0:05:29] [#]} (9... O-O $11 {keeps the balance.}) ({Predecessor:} 9... h6 10. Bxf6 Qxf6 11. Bxc4 O-O 12. O-O Bb7 13. Qb3 Bc5 14. Nxe6 fxe6 15. Bxe6+ Kh8 {0-1 (43) Duda,J (2760)-Aronian,L (2772) chess24.com INT 2022}) 10. Nc2 {[%emt 0:09:20]} ({White should play} 10. Be3 $1 $16) 10... Qxd1+ {[%emt 0:04:41]} 11. Rxd1 {[%emt 0:00:27]} Nbd7 {[%emt 0:00:54][%cal Bb8d7,Bd7c5,Bc5b3][%mdl 32]} 12. Bxc4 {[%emt 0:05:40]} Bb7 {[%emt 0:02:22] [#]} 13. f3 {[%emt 0:00:48]} Rc8 {[%emt 0:06:33]} (13... Ke7 $16 {was called for.} 14. Be3 (14. b4 Bd6 $14) 14... Bb6) 14. Be2 $18 {[%emt 0:01:18]} Bb6 {[%emt 0:09:57]} 15. Be3 {[%emt 0:05:06]} Nc5 {[%emt 0:02:26]} 16. Nb4 {[%emt 0:07:17]} (16. Na3 $18) 16... Ke7 $16 {[%emt 0:09:02][%cal Rc5e4]} (16... Ncxe4 $2 17. Nxe4 Nxe4 18. Bxb6 axb6 19. fxe4 $18) 17. Kf2 {[%emt 0:07:10]} Nfd7 {[%emt 0:04:03]} 18. Na6 {[%emt 0:01:26] White is more active.} (18. Ra1 $142) 18... Nb3 {[%emt 0:17:51]} 19. Bxb6 {[%emt 0:02:27]} axb6 {[%emt 0:01:57]} 20. Nb4 {[%emt 0:03:41]} Ndc5 {[%emt 0:01:52]} 21. Ke3 {[%emt 0:00:15]} Rhd8 {[%emt 0:10:14]} 22. Rxd8 {[%emt 0:00:19] Dancing on a razor blade.} Kxd8 {[%emt 0:00:08]} (22... Rxd8 $16 23. Nc6+ Bxc6) 23. Rd1+ $18 {[%emt 0:03:05]} Ke7 {[%emt 0:00:05]} 24. Nd3 {[%emt 0:00:55]} ({Better is} 24. Nc2 $18) 24... Nd7 {[%emt 0:02:19]} 25. Nc1 {[%emt 0:01:13]} Nbc5 {[%emt 0:06:50]} 26. Bd3 {[%emt 0:00:16]} Ne5 {[%emt 0:01:07]} 27. Be2 {[%emt 0:00:06]} (27. h4 $16) 27... Ra8 {[%emt 0:01:10]} (27... Ned7 $1 $11 {remains equal.}) 28. f4 {[%emt 0:01:52]} Ned7 {[%emt 0:00:10]} 29. Bc4 {[%emt 0:01:19]} (29. g3 $16) 29... Na4 {[%emt 0:01:28] The position is equal.} 30. Rd2 {[%emt 0:03:54]} Nxc3 {[%emt 0:00:48]} 31. bxc3 {[%emt 0:00:05]} Rc8 {[%emt 0:00:26]} 32. Bd3 {[%emt 0:01:47]} Rxc3 {[%emt 0:00:21]} 33. Rc2 $1 {[%emt 0:00:13] Black defended with fortune.  Weighted Error Value: White=0.31/Black=0.29 (precise)} 1/2-1/2

[Event "Austrian Championship 2022"]
[Site "Vienna"]
[Date "2022.08.15"]
[Round "5.18"]
[White "Lerch, Johannes"]
[Black "Hoegl, Emanuel"]
[Result "1/2-1/2"]
[ECO "B10"]
[WhiteElo "2222"]
[BlackElo "2094"]
[Annotator "TA"]
[PlyCount "71"]
[EventDate "2022.08.12"]
[EventType "swiss"]
[EventCountry "AUT"]
[SourceTitle "playchess.com"]
[Source "ChessBase"]
[SourceQuality "1"]
[TimeControl "40/5400+30:1800+30"]

{[%evp 9,71,-2,23,14,25,23,33,22,39,36,45,43,43,43,46,6,54,43,41,41,40,33,60,56,56,59,79,79,84,84,83,49,138,49,56,45,85,56,58,59,112,116,145,141,276,278,249,272,330,341,392,241,227,206,300,236,178,3,3,4,8,8,8,0]} 1. e4 {[%emt 0:00:02]} c6 {[%emt 0:00:04]} 2. Nf3 {[%emt 0:00:05]} d5 {[%emt 0:00:03]} 3. d3 {[%emt 0:00:04]} dxe4 {[%emt 0:00:04]} 4. dxe4 {[%emt 0:00:05]} Qxd1+ {[%emt 0:00:07]} 5. Kxd1 {[%emt 0:00:04]} Bg4 {[%emt 0:00:13]} 6. Be2 {[%emt 0:00:06] B10: Caro-Kann: 2 d3 and 2 c4.} Nd7 {[%emt 0:00:05]} 7. Ne1 {[%emt 0:00:51]} Bxe2+ {[%emt 0:00:04]} 8. Kxe2 {[%emt 0:00:04] White is slightly better.} e5 {[%emt 0:00:05]} 9. Nd3 {[%emt 0:00:21]} Nc5 {[%emt 0:00:23] [#]} 10. Nxc5 $146 {[%emt 0:02:02]} ({Predecessor:} 10. Nd2 Nf6 11. Nxc5 Bxc5 12. f3 Nd7 13. a4 a5 14. Nc4 Ke7 15. Rd1 f6 16. Bd2 {½-½ (44) Goganov,A (2582)-Shakirov,M (2139) St Petersburg 2022}) 10... Bxc5 {[%emt 0:00:06]} 11. Nd2 {[%emt 0:02:42]} O-O-O {[%emt 0:01:00]} 12. Nc4 {[%emt 0:02:18]} f6 {[%emt 0:10:14]} (12... Rd4 $11 13. Nd2 Rd7) 13. f3 {[%emt 0:04:00]} Ne7 {[%emt 0:00:59]} 14. a4 {[%emt 0:02:06]} Ng6 {[%emt 0:23:13]} 15. g3 {[%emt 0:01:28]} ({Reject} 15. Be3 Bxe3 16. Kxe3 Rd4 $11) 15... h5 {[%emt 0:02:56]} 16. h4 {[%emt 0:00:37]} Nf8 {[%emt 0:03:51]} 17. c3 {[%emt 0:02:43]} Ne6 {[%emt 0:04:24]} 18. b4 {[%emt 0:02:47]} Be7 {[%emt 0:00:54]} 19. Be3 {[%emt 0:00:50]} b6 {[%emt 0:04:27]} 20. Ra2 {[%emt 0:14:10]} Rd7 {[%emt 0:10:01] [#]} (20... g6 $14) 21. Rd2 {[%emt 0:10:37]} ({Better is} 21. Bxb6 $1 $16 {[%mdl 512] Strongly threatening Be3.} axb6 22. Nxb6+ Kd8 23. Nxd7 Kxd7 24. Rd1+ Kc8 25. Ke3) 21... Rxd2+ $14 {[%emt 0:04:09]} 22. Bxd2 {[%emt 0:00:10]} Kb7 {[%emt 0:10:44]} 23. Be3 {[%emt 0:01:02]} Rd8 {[%emt 0:03:11]} 24. Rg1 {[%emt 0:01:55]} Rg8 {[%emt 0:05:19]} (24... Bf8 $14) 25. f4 $16 {[%emt 0:04:11]} exf4 {[%emt 0:09:00]} 26. gxf4 {[%emt 0:01:22][%cal Bg3f4,Bf4f5][%mdl 32]} g5 {[%emt 0:02:27]} (26... Nf8 $16 27. Rd1 Kc7) 27. hxg5 $18 {[%emt 0:03:33]} fxg5 {[%emt 0:00:19]} 28. f5 {[%emt 0:00:13]} Nd8 {[%emt 0:00:57]} 29. e5 {[%emt 0:05:23]} g4 {[%emt 0:00:12]} 30. Bf4 {[%emt 0:07:25] aiming for Rd1.} Kc8 {[%emt 0:01:59]} 31. Rh1 {[%emt 0:02:03]} g3 {[%emt 0:02:12]} (31... h4 $142 32. f6 Bf8 33. Rxh4 g3) 32. Ne3 {[%emt 0:12:38] Kf3 is the strong threat.} ({Not} 32. Rxh5 Rg4 33. Bxg3 Rxg3 $11) 32... Bg5 {[%emt 0:01:11]} 33. Ng2 {[%emt 0:00:10]} ({White should play} 33. Bxg5 $18 Rxg5 34. e6) 33... Bxf4 $11 {[%emt 0:00:30] The position is equal.} 34. Nxf4 {[%emt 0:00:02]} g2 {[%emt 0:01:01]} 35. Rg1 {[%emt 0:00:20] [#] Hoping for Ng6.} Rg5 {[%emt 0:00:18]} 36. Kf3 {[%emt 0:07:22] Weighted Error Value: White=0.25 (precise) /Black=0.26 (precise)} 1/2-1/2

[Event "Austrian Championship 2022"]
[Site "Vienna"]
[Date "2022.08.15"]
[Round "5.19"]
[White "Kienboeck, Benjamin"]
[Black "Belke, Frank"]
[Result "1-0"]
[ECO "C16"]
[WhiteElo "2151"]
[BlackElo "2226"]
[Annotator "TA"]
[PlyCount "95"]
[EventDate "2022.08.12"]
[EventType "swiss"]
[EventCountry "AUT"]
[SourceTitle "playchess.com"]
[Source "ChessBase"]
[SourceQuality "1"]
[TimeControl "40/5400+30:1800+30"]

{[%evp 18,95,35,27,40,11,27,15,57,0,0,0,0,0,0,-61,-50,-60,-47,-87,-95,-154,-84,-75,-36,-114,-91,-97,-81,-152,-84,-129,-122,-169,-174,-198,-170,-198,-197,-191,-87,-87,-85,-85,-82,-88,-55,-104,0,-78,-81,-443,-415,-384,0,0,0,0,0,0,14,0,0,0,0,0,0,0,389,380,366,336,283,216,29958,29956,12851,5118,5110,5106]} 1. e4 {[%emt 0:00:04]} e6 {[%emt 0:00:03]} 2. d4 {[%emt 0:00:09]} d5 {[%emt 0:00:06]} 3. Nc3 {[%emt 0:00:11]} Bb4 {[%emt 0:00:06]} 4. e5 {[%emt 0:00:20]} Qd7 {[%emt 0:00:06]} 5. a3 {[%emt 0:00:46]} Bxc3+ {[%emt 0:00:07]} 6. bxc3 {[%emt 0:00:06]} b6 {[%emt 0:00:01]} 7. Qg4 {[%emt 0:00:26]} f5 {[%emt 0:00:06]} 8. Qg3 {[%emt 0:00:08]} Ba6 {[%emt 0:00:05]} 9. Bxa6 {[%emt 0:00:08]} Nxa6 {[%emt 0:00:01]} 10. Ne2 {[%emt 0:00:18]} Kf7 {[%emt 0:00:09] C16: French: 3 Nc3 Bb4 4 e5: Lines without ...c5.} 11. O-O {[%emt 0:01:12]} Ne7 {[%emt 0:06:07]} 12. h4 {[%emt 0:04:23] [#]} h6 $146 {[%emt 0:04:27] The position is equal.} ({Predecessor:} 12... Qa4 13. h5 Qxc2 14. h6 Rhg8 15. Nf4 Ng6 16. Nxg6 hxg6 17. hxg7 Nb8 18. Bh6 Qe2 {1-0 (27) Hecht,C (2091)-Welling,G (2336) Bad Wiessee 2013}) 13. Nf4 {[%emt 0:02:32]} ({White should play} 13. a4 $14) 13... Qa4 $11 {[%emt 0:01:23]} 14. h5 {[%emt 0:03:04]} Rhg8 {[%emt 0:12:53]} 15. Re1 {[%emt 0:06:31]} c5 {[%emt 0:01:56]} 16. Ng6 {[%emt 0:16:41]} (16. Be3 $11) 16... cxd4 $15 {[%emt 0:07:57]} 17. Nxe7 {[%emt 0:00:48]} Kxe7 {[%emt 0:00:02][%cal Bf7e7,Be7d7,Bd7c8][%mdl 32]} 18. Qh4+ {[%emt 0:00:18]} Kd7 {[%emt 0:01:44]} 19. cxd4 {[%emt 0:01:52] [#]} (19. Be3 $142) 19... Rac8 {[%emt 0:05:32]} (19... Qxc2 20. Qg3 $11) (19... Nb4 $142 $1 {[%cal Rb4c2]} 20. Rd1 Nxc2) 20. Bd2 $17 {[%emt 0:08:37][%cal Od2b4]} Rc7 {[%emt 0:01:03]} (20... Qxc2 $6 21. Bb4 Nxb4 22. axb4 $11) 21. c4 {[%emt 0:09:41]} (21. Qg3 $15) 21... Rxc4 {[%emt 0:03:33]} 22. Bb4 {[%emt 0:00:17] Hoping for Qe7+.} Kc8 {[%emt 0:00:43]} (22... Nxb4 $6 23. axb4 Qxb4 24. Reb1 $14) 23. Rec1 {[%emt 0:09:05]} (23. Bd6 $142) 23... Rd8 {[%emt 0:14:47]} ({Better is} 23... Nxb4 24. axb4 Qd7) 24. Rxc4+ {[%emt 0:06:02]} dxc4 {[%emt 0:00:07]} 25. Bd6 {[%emt 0:00:10]} (25. Rc1 $17 Qc6 26. Qe7) 25... Nc7 $19 {[%emt 0:03:37] Threatens to win with ...c3.} 26. Rc1 {[%emt 0:01:40]} Rd7 {[%emt 0:00:54]} (26... Nd5 27. Qg3 $11) 27. Qg3 {[%emt 0:11:04]} Qc6 {[%emt 0:01:33]} 28. Qc3 {[%emt 0:01:43]} Nb5 {[%emt 0:10:43]} (28... b5 $19 {and Black stays clearly on top.} 29. Bc5 (29. a4 Nd5 $17) 29... Nd5) 29. Qxc4 $17 {[%emt 0:03:21]} Qxc4 {[%emt 0:00:01]} 30. Rxc4+ {[%emt 0:00:01][%mdl 4096] Endgame KRB-KRN} Kb7 {[%emt 0:00:08]} 31. Bf8 {[%emt 0:00:42]} Rf7 {[%emt 0:00:12]} (31... Rxd4 $2 32. Rxd4 Nxd4 33. Bxg7 $18) 32. Bb4 {[%emt 0:00:54]} (32. a4 $15) 32... Rd7 {[%emt 0:12:48]} 33. Bf8 {[%emt 0:00:29]} Nxd4 {[%emt 0:02:50]} 34. Bxg7 $2 {[%emt 0:01:33][%mdl 8192]} Ne2+ {[%emt 0:00:07]} ({Stronger than} 34... Rxg7 35. Rxd4 Rc7 36. f3 $11) 35. Kf1 {[%emt 0:00:34] [#]} Rxg7 {[%emt 0:00:02]} (35... b5 $1 $19 {[%cal Rb5c4]} 36. Kxe2 bxc4) 36. Kxe2 $11 {[%emt 0:00:07]} Rxg2 $19 {[%emt 0:00:08] KR-KR} 37. Rd4 $1 {[%emt 0:00:36]} Rg4 {[%emt 0:01:50]} 38. Rd7+ {[%emt 0:00:31]} Ka6 {[%emt 0:00:12]} 39. f3 {[%emt 0:03:13]} Rh4 {[%emt 0:01:42]} 40. Rd6 {[%emt 0:00:29]} Rxh5 {[%emt 0:01:03]} ({Resist} 40... Rh2+ 41. Ke3 $16) 41. Rxe6 {[%emt 0:31:12] Strongly threatening Ke3.} Kb5 $1 {[%emt 0:30:19]} 42. Ke3 {[%emt 0:00:50]} Kc5 {[%emt 0:02:19][%mdl 8192]} (42... Rh4 $1 $11 {and Black is okay.}) 43. Kf4 $18 {[%emt 0:00:17]} a5 {[%emt 0:05:34]} 44. Re8 {[%emt 0:00:34] Rd8 is the strong threat.} b5 {[%emt 0:01:06]} 45. Rd8 {[%emt 0:00:54] And now e6 would win.} b4 $2 {[%emt 0:00:37]} (45... Rh2 $18 46. Ra8 (46. Kxf5 b4 $16) 46... h5) 46. axb4+ {[%emt 0:00:21]} axb4 {[%emt 0:00:02]} 47. e6 {[%emt 0:00:23] Intending e7 and mate.} Rh4+ {[%emt 0:02:27]} 48. Kg3 {[%emt 0:00:00] Quite a comeback for White.  Weighted Error Value: White=0.37/Black=0.68} 1-0

[Event "Austrian Championship 2022"]
[Site "Vienna"]
[Date "2022.08.15"]
[Round "5.20"]
[White "Scheffknecht, Philipp"]
[Black "Bauer, Thomas"]
[Result "0-1"]
[ECO "B23"]
[WhiteElo "2093"]
[BlackElo "2228"]
[Annotator "TA"]
[PlyCount "76"]
[EventDate "2022.08.12"]
[EventType "swiss"]
[EventCountry "AUT"]
[SourceTitle "playchess.com"]
[Source "ChessBase"]
[SourceQuality "1"]
[TimeControl "40/5400+30:1800+30"]

{[%evp 9,76,8,38,33,43,0,0,0,0,0,0,0,0,-12,-10,-29,10,19,0,-41,-32,-26,-14,-51,-49,-50,-41,-74,-52,-54,-54,-75,-80,-122,-96,-112,-63,-147,-157,-123,-111,-185,-128,-115,-126,-116,-128,-438,-122,-102,0,-458,-255,-420,-405,-939,-922,-2764,-2525,-29988,-29989,-29989,-29990,-29990,-29988,-29995,-29995,-29998,-29999]} 1. e4 {[%emt 0:00:01]} c5 {[%emt 0:01:33]} 2. Nc3 {[%emt 0:00:13]} e6 {[%emt 0:02:12]} 3. f4 {[%emt 0:05:24]} Nh6 {[%emt 0:00:12] [#]} 4. Bc4 $146 {[%emt 0:03:40]} ({Predecessor:} 4. Nf3 Nc6 5. d4 cxd4 6. Nxd4 a6 7. Be3 Bb4 8. Nxc6 Bxc3+ 9. bxc3 bxc6 10. Bc5 d5 11. Qd4 {1-0 (40) Fallowfield,J (2047)-Needham,S (1754) England 2015}) 4... a6 {[%emt 0:03:21]} 5. a4 {[%emt 0:03:10]} Qh4+ {[%emt 0:01:26]} 6. g3 {[%emt 0:00:46] B23: Closed Sicilian: Lines without g3.} Qe7 {[%emt 0:00:02]} 7. Qe2 {[%emt 0:09:46]} Nc6 {[%emt 0:00:02][%cal Od7d5] White must now prevent ...d5!} 8. Nf3 {[%emt 0:00:32] The position is equal.} g6 {[%emt 0:08:01]} 9. O-O {[%emt 0:05:58]} Bg7 {[%emt 0:00:20]} 10. d3 {[%emt 0:06:16]} b6 {[%emt 0:04:06]} 11. h3 {[%emt 0:03:42]} Bb7 {[%emt 0:05:28]} 12. Be3 {[%emt 0:06:34]} Nd4 {[%emt 0:05:52]} 13. Bxd4 {[%emt 0:10:08]} cxd4 {[%emt 0:04:21]} 14. Nd1 {[%emt 0:01:01]} Qc5 {[%emt 0:09:25]} 15. Kh2 {[%emt 0:12:52]} O-O {[%emt 0:03:10]} 16. c3 {[%emt 0:03:45]} dxc3 {[%emt 0:02:58]} 17. bxc3 {[%emt 0:00:37]} d5 {[%emt 0:03:04]} 18. Ba2 {[%emt 0:03:07]} dxe4 {[%emt 0:04:58]} 19. dxe4 {[%emt 0:00:12]} Rfd8 {[%emt 0:00:26]} 20. Rb1 {[%emt 0:02:20]} Rac8 {[%emt 0:07:30] Black is more active.} 21. Rb4 {[%emt 0:06:29]} a5 {[%emt 0:03:23]} ({Of course not} 21... Bxc3 $6 22. Rc4 Qa3 23. Nxc3 $15) 22. Rb2 {[%emt 0:04:06]} Qc6 {[%emt 0:08:26]} (22... Bc6 $17 23. Bb3 b5) 23. e5 {[%emt 0:03:49]} ({White should play} 23. Ng5 $15) 23... Nf5 $17 {[%emt 0:06:33][%cal Od8d1] ...Rxd1! is the strong threat.} ({Not} 23... Qxa4 24. Ng5 $17) 24. Bb3 {[%emt 0:05:36]} h5 {[%emt 0:01:47]} 25. g4 {[%emt 0:01:44] [#]} (25. Bc2 $17 {is a better defense.}) 25... hxg4 {[%emt 0:02:44]} (25... Bh6 $1 $19 26. Ng5 hxg4 27. hxg4 Ne7) 26. hxg4 {[%emt 0:00:05]} Ne7 {[%emt 0:02:47]} 27. Nd4 {[%emt 0:00:46]} Qd7 {[%emt 0:01:32][%cal Og6g5] Threatens to win with ...g5!} 28. Kg3 $2 {[%emt 0:00:38][%mdl 8192]} (28. Rd2 $17) 28... Nc6 $2 {[%emt 0:01:07]} (28... g5 $19 29. Nf3 gxf4+ 30. Kh2 Ng6) 29. Nf3 {[%emt 0:00:48]} Ne7 $2 {[%emt 0:01:58][%mdl 8192]} (29... Qc7 $17) 30. Nd4 $19 {[%emt 0:00:34]} Rc5 {[%emt 0:02:04]} (30... g5 $142 31. Nf3 gxf4+ 32. Kh3 Ng6) 31. Bc2 $2 {[%emt 0:00:46]} (31. Nf3 {was called for.}) 31... Nd5 {[%emt 0:01:06]} 32. Rb3 {[%emt 0:00:32] [#]} (32. Nf3 $142 Qc7 33. Rf2) 32... Nxf4 $1 {[%emt 0:01:37][%mdl 512]} 33. Kxf4 {[%emt 0:00:31]} (33. Rxf4 Bxe5) 33... Bxe5+ {[%emt 0:00:01] A strong pair of Bishops.} 34. Ke3 {[%emt 0:00:30] [#]} Rxc3+ $3 {[%emt 0:00:19][%mdl 512] Black mates.} 35. Kf2 {[%emt 0:00:30]} (35. Kd2 Qxd4+) 35... Qxd4+ {[%emt 0:01:37]} 36. Ke1 {[%emt 0:00:29]} Bg3+ {[%emt 0:00:24]} 37. Nf2 {[%emt 0:00:13]} Rxb3 {[%emt 0:00:18]} 38. Bxb3 {[%emt 0:00:14]} Qc3+ {[%emt 0:00:17] Weighted Error Value: White=0.79/Black=0.36} 0-1